bitfinex/quotes_BTCUSD_20220211
["timestamp","ask_amount","ask_price","bid_price","bid_amount"]
[1644588316323,0.16412799,43823.0,43822.0,0.057069]
[1644588316725,0.16412799,43823.0,43821.0,0.04606175]
[1644588316923,0.16412799,43823.0,43821.0,0.0458]
[1644588317126,0.11412799,43823.0,43822.0,0.057065]
[1644588317326,0.11412799,43823.0,43822.0,0.34394217]
[1644588317526,0.11412799,43823.0,43822.0,0.53328188]
[1644588317829,0.11412799,43823.0,43822.0,0.63328188]
[1644588318028,0.11412799,43823.0,43822.0,1.01363163]
[1644588318305,0.00075136,43828.0,43824.0,0.38823719]
[1644588318502,0.00075136,43828.0,43827.0,0.05]
[1644588318703,0.00075136,43828.0,43827.0,0.0958]
[1644588319003,0.19472253,43846.0,43827.0,0.0958]
[1644588319203,0.38970064,43843.0,43835.0,0.057043]
[1644588319404,0.38970064,43843.0,43836.0,0.102847]
[1644588319801,0.27792412,43838.0,43836.0,0.102847]
[1644588320001,0.3199179,43843.0,43836.0,0.34445025]
[1644588320304,0.00075131,43842.0,43836.0,0.44445025]
[1644588320505,0.00075131,43842.0,43837.0,0.34379657]
[1644588320705,0.00075131,43842.0,43838.0,0.0458]
[1644588321104,0.34325214,43840.0,43838.0,0.0458]
[1644588321303,0.39325214,43840.0,43838.0,0.0458]
[1644588321504,0.39325214,43840.0,43839.0,0.057044]
[1644588323525,0.39325214,43840.0,43838.0,0.0458]
[1644588323730,0.39325214,43840.0,43836.0,0.114093]
[1644588323925,0.39325214,43840.0,43832.0,0.0458]
[1644588324134,0.39325214,43840.0,43826.0,0.33019072]
[1644588324135,0.39325214,43840.0,43827.0,0.19470277]
[1644588324524,0.50735346,43840.0,43827.0,0.19470277]
[1644588324727,0.50735346,43840.0,43828.0,0.19470277]
[1644588324927,0.50735346,43840.0,43826.0,0.12106175]
[1644588324928,0.38383424,43830.0,43826.0,0.12106175]
[1644588325126,0.28164307,43829.0,43826.0,0.00026175]
[1644588325425,0.38383424,43830.0,43823.0,0.52740359]
[1644588325426,0.43383424,43830.0,43825.0,0.00026175]
[1644588325681,0.43383424,43830.0,43823.0,0.19470277]
[1644588325877,0.43383424,43830.0,43823.0,0.19496452]
[1644588326078,0.43383424,43830.0,43823.0,0.19470277]
[1644588326281,0.28439891,43826.0,43823.0,0.19470277]
[1644588326483,0.05706693,43826.0,43823.0,0.19470277]
[1644588326680,0.10706693,43826.0,43824.0,0.19470277]
[1644588326880,0.05706693,43826.0,43824.0,0.19470277]
[1644588327280,0.05706693,43826.0,43823.0,0.25203052]
[1644588327481,0.05706693,43826.0,43824.0,0.19470277]
[1644588328085,0.05706693,43826.0,43823.0,0.25203052]
[1644588328284,0.05706693,43826.0,43824.0,0.19470277]
[1644588328684,0.05706693,43826.0,43824.0,0.25176677]
[1644588328881,0.05706693,43826.0,43823.0,0.19496452]
[1644588329081,0.05706693,43826.0,43823.0,0.19470277]
[1644588329282,0.05706693,43826.0,43823.0,0.00026175]
[1644588329535,0.05706693,43826.0,43824.0,0.19470277]
[1644588329735,0.05706693,43826.0,43824.0,0.25176577]
[1644588329937,0.05706693,43826.0,43824.0,0.057063]
[1644588330538,0.2764502,43825.0,43824.0,0.057063]
[1644588330738,0.3264502,43825.0,43824.0,0.057063]
[1644588332045,0.3264502,43825.0,43823.0,0.00026175]
[1644588332341,0.3264502,43825.0,43822.0,0.00101291]
[1644588332342,0.38352609,43825.0,43822.0,0.00101291]
[1644588332541,0.38352609,43825.0,43822.0,0.00075116]
[1644588333178,0.38352609,43825.0,43820.0,0.00026175]
[1644588333378,0.31193458,43823.0,43819.0,0.00026175]
[1644588333582,0.36901093,43823.0,43821.0,0.00075116]
[1644588333779,0.41901093,43823.0,43821.0,0.00075116]
[1644588334378,0.41901093,43823.0,43819.0,0.00026175]
[1644588334581,0.41901093,43823.0,43820.0,0.00075117]
[1644588334980,0.41704296,43823.0,43820.0,0.00075117]
[1644588335180,0.41204296,43823.0,43820.0,0.00075117]
[1644588335581,0.41204296,43823.0,43819.0,0.00026175]
[1644588335781,0.41204296,43823.0,43818.0,0.14080775]
[1644588335983,0.10010838,43823.0,43819.0,0.00101292]
[1644588336187,0.05010838,43823.0,43819.0,0.00075117]
[1644588336382,0.05,43822.0,43819.0,0.00101292]
[1644588336583,0.05,43822.0,43819.0,0.26360207]
[1644588336783,0.3335213,43825.0,43819.0,0.00026175]
[1644588336784,0.05,43824.0,43819.0,0.00026175]
[1644588337037,0.05,43824.0,43818.0,0.39232477]
[1644588337038,0.05,43824.0,43818.0,0.39333769]
[1644588337234,0.05,43824.0,43822.0,6.516e-05]
[1644588338834,0.38083017,43825.0,43822.0,6.516e-05]
[1644588338835,0.0570711,43825.0,43822.0,6.516e-05]
[1644588339033,0.0570711,43825.0,43822.0,0.00032691]
[1644588339231,0.0570711,43825.0,43822.0,6.516e-05]
[1644588339430,0.0570711,43825.0,43822.0,0.00032691]
[1644588339631,0.0570711,43825.0,43822.0,6.516e-05]
[1644588339830,0.0570711,43825.0,43821.0,0.0580142]
[1644588339831,0.00171309,43822.0,43821.0,0.0580142]
[1644588340031,0.0570711,43825.0,43824.0,0.00200084]
[1644588341179,0.00093317,43822.0,43821.0,0.00019104]
[1644588342783,0.00093317,43822.0,43820.0,0.11427315]
[1644588344082,0.05800849,43822.0,43820.0,0.11427315]
[1644588344729,0.05800849,43822.0,43815.0,0.1171]
[1644588344730,0.05,43821.0,43815.0,0.1171]
[1644588344929,0.05,43821.0,43815.0,0.0011]
[1644588345127,0.0570837,43820.0,43815.0,0.0011]
[1644588345327,0.42101013,43820.0,43816.0,0.057081]
[1644588345526,0.47101013,43820.0,43816.0,0.057081]
[1644588345732,0.47101013,43820.0,43815.0,0.0011]
[1644588345733,0.29345104,43819.0,43815.0,0.0011]
[1644588346128,0.35053789,43819.0,43815.0,0.0011]
[1644588346533,0.40053789,43819.0,43815.0,0.0011]
[1644588346729,0.40053789,43819.0,43816.0,0.057083]
[1644588346929,0.40053789,43819.0,43815.0,0.0011]
[1644588346930,0.11416945,43818.0,43815.0,0.0011]
[1644588347330,0.16416945,43818.0,43815.0,0.0011]
[1644588347531,0.21537641,43817.0,43815.0,0.0011]
[1644588348032,0.27246841,43817.0,43815.0,0.0011]
[1644588348271,0.057092,43817.0,43815.0,0.0011]
[1644588348871,0.16416945,43818.0,43815.0,0.0011]
[1644588349471,0.28358585,43817.0,43815.0,0.0011]
[1644588350073,0.34067785,43817.0,43815.0,0.0011]
[1644588350273,0.28957877,43816.0,43815.0,0.0011]
[1644588350472,0.28457877,43816.0,43815.0,0.0011]
[1644588350676,0.1112278,43811.0,43808.0,0.19476353]
[1644588350873,0.06139494,43811.0,43808.0,0.19476353]
[1644588351074,0.06139494,43811.0,43808.0,0.19467853]
[1644588351273,0.11848394,43811.0,43808.0,0.19467853]
[1644588351677,0.057089,43811.0,43808.0,0.25176514]
[1644588351942,0.38597546,43812.0,43808.0,0.25176514]
[1644588352336,0.057089,43811.0,43808.0,0.30885214]
[1644588352536,0.057089,43811.0,43808.0,0.05708661]
[1644588353336,0.057089,43811.0,43804.0,0.28852505]
[1644588353537,0.114177,43811.0,43805.0,0.057089]
[1644588353736,0.057089,43811.0,43805.0,0.057089]
[1644588353938,0.057089,43811.0,43805.0,0.05784026]
[1644588354136,2.24820553,43807.0,43805.0,0.05784026]
[1644588354343,2.30529953,43807.0,43805.0,0.00075126]
[1644588354738,0.29964667,43806.0,43805.0,0.00075126]
[1644588354937,0.29964667,43806.0,43802.0,0.0573543]
[1644588355137,0.29964667,43806.0,43804.0,0.00075127]
[1644588355783,0.45515844,43805.0,43804.0,0.00075127]
[1644588356184,0.45515844,43805.0,43802.0,0.00026125]
[1644588356483,0.45515844,43805.0,43802.0,0.00075128]
[1644588356682,0.51226144,43805.0,43802.0,0.00075128]
[1644588356885,0.56226144,43805.0,43802.0,0.00075128]
[1644588357286,0.56226144,43805.0,43801.0,0.00026125]
[1644588357583,0.057094,43804.0,43801.0,0.00075128]
[1644588357784,0.114188,43804.0,43801.0,0.00101253]
[1644588357984,0.114188,43804.0,43802.0,0.057094]
[1644588358187,0.057094,43804.0,43802.0,0.057094]
[1644588359927,2.10692725,43803.0,43802.0,0.057094]
[1644588360127,0.057094,43804.0,43802.0,0.11418719]
[1644588360929,0.40648303,43804.0,43802.0,0.11418719]
[1644588361133,0.40648303,43804.0,43802.0,0.057094]
[1644588361330,0.52067403,43804.0,43802.0,0.057094]
[1644588361537,0.52067403,43804.0,43801.0,0.00101253]
[1644588361930,0.171285,43804.0,43801.0,0.00101253]
[1644588362132,0.171285,43804.0,43801.0,0.00026125]
[1644588362330,0.171285,43804.0,43803.0,6.104e-05]
[1644588362532,0.057094,43804.0,43803.0,6.104e-05]
[1644588362735,0.3887,43818.0,43803.0,0.24051748]
[1644588362736,0.057081,43806.0,43803.0,0.24051748]
[1644588362936,0.69946442,43818.0,43804.0,0.87340474]
[1644588363177,0.69946442,43818.0,43805.0,0.24045644]
[1644588363477,0.69946442,43818.0,43809.0,0.00075123]
[1644588363478,0.30059748,43811.0,43809.0,0.00075123]
[1644588363678,0.61894742,43811.0,43810.0,0.102877]
[1644588363878,0.30059748,43811.0,43810.0,0.102877]
[1644588364277,0.35059748,43811.0,43810.0,0.102877]
[1644588364477,0.35059748,43811.0,43810.0,0.0458]
[1644588364681,0.114154,43812.0,43810.0,0.32495973]
[1644588364879,0.057077,43812.0,43811.0,0.28131829]
[1644588365078,0.057077,43812.0,43811.0,0.0458]
[1644588365878,0.114152,43812.0,43811.0,0.0458]
[1644588368972,0.057077,43812.0,43811.0,0.0458]
[1644588369173,0.057077,43812.0,43811.0,0.24045644]
[1644588369372,0.057077,43812.0,43811.0,0.52000189]
[1644588369574,0.114142,43819.0,43811.0,0.32534545]
[1644588369879,0.00075105,43820.0,43814.0,0.24473653]
[1644588370074,0.00075105,43820.0,43815.0,0.35553216]
[1644588370273,0.00075105,43820.0,43815.0,0.45553216]
[1644588370476,0.05093317,43822.0,43819.0,0.23904734]
[1644588370684,0.057051,43831.0,43821.0,1.1]
[1644588370897,0.057051,43831.0,43825.0,0.05]
[1644588371083,0.057054,43830.0,43826.0,0.0458]
[1644588371283,0.33160946,43833.0,43826.0,0.0458]
[1644588371784,0.38021918,43830.0,43826.0,0.0458]
[1644588372184,0.43727318,43830.0,43828.0,0.05704994]
[1644588372487,0.46292099,43825.0,43823.0,0.15]
[1644588372682,0.46292099,43825.0,43824.0,0.0458]
[1644588372885,0.51998299,43825.0,43824.0,0.0458]
[1644588373186,0.56998299,43825.0,43824.0,0.10286]
[1644588373884,0.51998299,43825.0,43824.0,0.10286]
[1644588375230,0.56998299,43825.0,43824.0,0.10286]
[1644588375630,0.51998299,43825.0,43824.0,0.10286]
[1644588376030,0.56998299,43825.0,43824.0,0.10286]
[1644588377232,0.57912199,43825.0,43824.0,0.10286]
[1644588377433,0.57912199,43825.0,43824.0,0.10292045]
[1644588377636,0.56998299,43825.0,43824.0,0.10292045]
[1644588378674,0.56831999,43825.0,43824.0,0.10292045]
[1644588380076,0.56831999,43825.0,43824.0,0.04586045]
[1644588380477,0.56831999,43825.0,43824.0,6.045e-05]
[1644588381276,0.57745999,43825.0,43824.0,6.045e-05]
[1644588381576,0.56831999,43825.0,43824.0,6.045e-05]
[1644588382431,0.56831999,43825.0,43823.0,0.00012046]
[1644588382632,0.228277,43827.0,43823.0,0.00012046]
[1644588382837,0.228277,43827.0,43824.0,0.0458]
[1644588382838,0.00075107,43827.0,43824.0,0.0458]
[1644588383132,0.00025144,43827.0,43826.0,0.76683653]
[1644588383331,0.00025144,43827.0,43826.0,0.7179]
[1644588383532,0.00025144,43827.0,43826.0,0.93585141]
[1644588383731,0.19771494,43841.0,43826.0,0.99290041]
[1644588383732,0.25000817,43840.0,43826.0,0.99290041]
[1644588383930,0.25000817,43840.0,43830.0,0.37515988]
[1644588384132,0.25000817,43840.0,43831.0,0.0458]
[1644588384330,0.057048,43836.0,43831.0,0.0458]
[1644588384929,0.057048,43836.0,43833.0,0.05704762]
[1644588385335,0.057048,43836.0,43834.0,0.0458]
[1644588392028,0.107048,43836.0,43834.0,0.0458]
[1644588392527,0.107048,43836.0,43835.0,6.014e-05]
[1644588392730,0.107048,43836.0,43835.0,0.04586014]
[1644588393181,0.05,43836.0,43835.0,6.014e-05]
[1644588394284,0.25281373,43836.0,43835.0,6.014e-05]
[1644588395883,0.05,43836.0,43835.0,6.014e-05]
[1644588397328,0.05,43836.0,43834.0,0.11410602]
[1644588397329,0.05,43836.0,43834.0,0.11416616]
[1644588397529,0.05,43836.0,43834.0,0.05711216]
[1644588397732,0.25,43835.0,43834.0,6.014e-05]
[1644588398330,0.05,43836.0,43834.0,6.014e-05]
[1644588398732,0.12398901,43837.0,43834.0,6.014e-05]
[1644588398936,0.12398901,43837.0,43834.0,0.30083836]
[1644588398937,0.00988801,43837.0,43834.0,0.30083836]
[1644588399135,0.00988801,43837.0,43835.0,0.0458]
[1644588399533,0.009137,43837.0,43835.0,0.0458]
[1644588400333,0.009137,43837.0,43835.0,0.0408]
[1644588400974,0.009137,43837.0,43836.0,0.28786859]
[1644588401178,0.009137,43837.0,43836.0,0.33366859]
[1644588401377,0.009137,43837.0,43836.0,0.43366859]
[1644588401977,0.009137,43837.0,43836.0,0.1458]
[1644588402378,0.009137,43837.0,43836.0,0.14586011]
[1644588402577,0.40300355,43845.0,43836.0,0.14586011]
[1644588402578,0.20040681,43845.0,43837.0,0.8]
[1644588402779,0.20040681,43845.0,43840.0,0.05703721]
[1644588402980,0.19740326,43845.0,43841.0,0.0458]
[1644588403382,0.22847393,43844.0,43841.0,0.0458]
[1644588403677,0.22847393,43844.0,43841.0,0.0408]
[1644588403877,0.52228197,43844.0,43841.0,0.0408]
[1644588404077,0.22847393,43844.0,43841.0,0.097839]
[1644588404276,0.22847393,43844.0,43841.0,0.15487709]
[1644588404527,0.19740326,43845.0,43842.0,0.11407511]
[1644588404729,0.19740326,43845.0,43843.0,0.0458]
[1644588405126,0.25016008,43844.0,43843.0,0.0458]
[1644588405325,0.19740326,43845.0,43843.0,0.0458]
[1644588405728,0.20653826,43845.0,43843.0,0.159875]
[1644588406129,0.19740326,43845.0,43843.0,0.159875]
[1644588406326,0.28024864,43844.0,43843.0,0.159875]
[1644588406728,0.27524864,43844.0,43843.0,0.159875]
[1644588407229,0.27524864,43844.0,43843.0,0.114075]
[1644588408491,0.19740326,43845.0,43843.0,0.114075]
[1644588409889,0.27971878,43844.0,43843.0,0.114075]
[1644588410289,0.47786635,43844.0,43843.0,0.114075]
[1644588410494,0.47786635,43844.0,43842.0,0.11407511]
[1644588410892,0.47786635,43844.0,43840.0,0.05704897]
[1644588410893,0.057049,43843.0,43840.0,0.05704897]
[1644588411098,0.36678438,43841.0,43840.0,0.05704897]
[1644588411292,0.114096,43843.0,43840.0,0.05598397]
[1644588411492,0.27971878,43844.0,43840.0,0.17006874]
[1644588411691,0.28046985,43844.0,43841.0,0.057043]
[1644588412133,0.28046985,43844.0,43841.0,0.05704199]
[1644588412331,0.697443,43844.0,43841.0,0.05704199]
[1644588412531,0.69669193,43844.0,43841.0,0.05704199]
[1644588412731,0.64669193,43844.0,43841.0,0.05704199]
[1644588413333,0.64669193,43844.0,43842.0,0.057045]
[1644588413736,0.69669193,43844.0,43842.0,0.057045]
[1644588414335,0.81078293,43844.0,43838.0,0.11409]
[1644588414533,0.33715708,43843.0,43840.0,0.05704832]
[1644588414733,0.33715708,43843.0,43837.0,0.21409343]
[1644588414734,0.33715708,43843.0,43837.0,0.1]
[1644588414934,0.39420908,43843.0,43835.0,0.333697]
[1644588415133,0.39420908,43843.0,43835.0,0.114097]
[1644588415134,0.33715908,43843.0,43835.0,0.114097]
[1644588415335,0.33715908,43843.0,43835.0,0.214097]
[1644588415980,0.057049,43841.0,43835.0,0.214097]
[1644588416180,0.057049,43839.0,43838.0,0.05705]
[1644588416580,0.057049,43839.0,43838.0,0.1141014]
[1644588416781,0.057049,43839.0,43838.0,0.05705]
[1644588421132,0.05677449,43839.0,43838.0,0.05705]
[1644588423032,0.05677449,43839.0,43838.0,0.05718114]
[1644588423480,0.057041,43841.0,43838.0,0.05718114]
[1644588423679,0.05779208,43841.0,43839.0,0.17112496]
[1644588424683,0.057041,43841.0,43839.0,0.17112496]
[1644588427332,0.057041,43841.0,43840.0,0.00022005]
[1644588428536,0.00075108,43843.0,43840.0,0.00022005]
[1644588428836,0.00075108,43843.0,43840.0,0.36590205]
[1644588429035,0.00075108,43843.0,43840.0,0.47997305]
[1644588429238,0.00075108,43843.0,43841.0,0.0458]
[1644588429435,0.057038,43844.0,43841.0,0.0458]
[1644588429647,0.05778907,43844.0,43841.0,0.0458]
[1644588430034,0.057043,43843.0,43841.0,0.102836]
[1644588431487,0.05778907,43844.0,43841.0,0.102836]
[1644588431889,0.057038,43844.0,43841.0,0.102836]
[1644588432486,0.057038,43844.0,43842.0,0.00021893]
[1644588432687,0.57164112,43844.0,43840.0,0.27863353]
[1644588432888,0.57164112,43844.0,43841.0,0.0458]
[1644588433087,0.307038,43844.0,43841.0,0.0458]
[1644588433288,0.30778907,43844.0,43841.0,0.0458]
[1644588433487,0.30778907,43844.0,43841.0,0.102836]
[1644588434288,0.307038,43844.0,43841.0,0.102836]
[1644588434536,0.057038,43844.0,43841.0,0.102836]
[1644588434934,0.057042,43843.0,43841.0,0.102836]
[1644588435333,0.057038,43844.0,43841.0,0.102836]
[1644588435834,0.05778907,43844.0,43841.0,0.102836]
[1644588436434,0.05618331,43844.0,43841.0,0.102836]
[1644588436637,0.05543224,43844.0,43841.0,0.102836]
[1644588436836,0.05543224,43844.0,43842.0,0.07865119]
[1644588437639,0.05802859,43845.0,43843.0,6.873e-05]
[1644588437838,0.057035,43845.0,43843.0,0.11413866]
[1644588438046,0.05751068,43845.0,43843.0,0.11413866]
[1644588439083,0.057035,43845.0,43843.0,0.11413866]
[1644588440884,0.16606792,43846.0,43843.0,0.11413866]
[1644588440885,0.10902692,43846.0,43843.0,0.11413866]
[1644588441084,0.05878439,43846.0,43844.0,0.057034]
[1644588441285,0.10878439,43846.0,43844.0,0.057034]
[1644588441483,0.108033,43846.0,43844.0,0.057034]
[1644588441937,0.058033,43846.0,43844.0,0.057034]
[1644588442532,0.001,43846.0,43844.0,0.05717075]
[1644588445237,0.001,43846.0,43845.0,0.0458]
[1644588447385,0.001,43846.0,43845.0,0.28915328]
[1644588447681,0.001,43846.0,43845.0,0.04593449]
[1644588448284,0.001,43846.0,43845.0,0.4223762]
[1644588448483,0.001,43846.0,43845.0,0.5223762]
[1644588449541,0.001,43846.0,43845.0,0.7847894]
[1644588449945,0.00054178,43846.0,43845.0,1.02800819]
[1644588450139,0.00054178,43846.0,43845.0,0.76559499]
[1644588450840,0.00054178,43846.0,43845.0,1.33769499]
[1644588451840,0.00054178,43846.0,43845.0,1.0944762]
[1644588452241,0.00054178,43846.0,43845.0,0.71803449]
[1644588452445,0.00054178,43846.0,43845.0,0.91279806]
[1644588454587,0.00054178,43846.0,43845.0,0.71803449]
[1644588454788,0.00014178,43846.0,43845.0,0.71803449]
[1644588455591,0.00014178,43846.0,43845.0,0.91278441]
[1644588457936,0.00014178,43846.0,43845.0,0.90843441]
[1644588458135,0.00014178,43846.0,43845.0,0.90712441]
[1644588461086,0.00014178,43846.0,43845.0,0.33502441]
[1644588461285,0.00014178,43846.0,43845.0,0.21266441]
[1644588461489,0.00014178,43846.0,43845.0,0.31266441]
[1644588462487,0.00014178,43846.0,43845.0,0.31273148]
[1644588462690,0.36018983,43854.0,43846.0,0.69660204]
[1644588462887,0.08418166,43854.0,43848.0,0.057029]
[1644588463088,0.001,43854.0,43849.0,0.0458]
[1644588463687,0.058026,43854.0,43849.0,0.0458]
[1644588463888,0.115056,43854.0,43850.0,0.057027]
[1644588464087,0.115056,43854.0,43850.0,0.102827]
[1644588464290,0.115056,43854.0,43850.0,0.15985718]
[1644588464547,0.058026,43854.0,43850.0,0.10283018]
[1644588465349,0.058026,43854.0,43851.0,0.05703]
[1644588465548,0.115056,43854.0,43851.0,0.05703]
[1644588465747,0.11553135,43854.0,43851.0,0.05703]
[1644588465947,0.05850135,43854.0,43851.0,0.05703]
[1644588466748,0.058026,43854.0,43851.0,0.05703]
[1644588466948,0.058026,43854.0,43852.0,0.057029]
[1644588467353,0.058026,43854.0,43852.0,0.05709712]
[1644588467852,0.001,43854.0,43852.0,0.05709712]
[1644588468050,0.001,43854.0,43852.0,0.11412589]
[1644588472539,0.001,43854.0,43853.0,0.00020603]
[1644588477489,0.00072554,43854.0,43853.0,0.00020603]
[1644588479739,0.24418539,43854.0,43853.0,0.00020603]
[1644588479937,0.54236262,43854.0,43853.0,0.00020603]
[1644588480538,0.59236262,43854.0,43853.0,0.00020603]
[1644588480741,0.34890277,43854.0,43853.0,0.00020603]
[1644588481937,0.68050884,43854.0,43853.0,0.00020603]
[1644588482139,0.057051,43849.0,43842.0,0.19476788]
[1644588482338,0.057051,43849.0,43840.0,0.19476788]
[1644588482339,0.25188084,43847.0,43840.0,0.19476788]
[1644588482539,0.25188084,43847.0,43841.0,0.00075157]
[1644588483037,0.58378344,43847.0,43841.0,0.00075157]
[1644588483290,0.30021594,43843.0,43841.0,0.00075157]
[1644588483486,0.57099516,43843.0,43840.0,0.19476788]
[1644588483690,0.30021594,43843.0,43841.0,0.00075147]
[1644588484086,0.057052,43844.0,43841.0,0.00075147]
[1644588484687,0.057052,43844.0,43840.0,0.19476788]
[1644588484888,0.057052,43844.0,43840.0,0.00075147]
[1644588485290,0.18645694,43843.0,43840.0,0.00075147]
[1644588485492,0.057053,43843.0,43840.0,0.00075147]
[1644588485689,0.18740649,43842.0,43840.0,0.00075147]
[1644588485891,0.18740649,43842.0,43837.0,0.19476788]
[1644588485892,0.34793044,43841.0,43837.0,0.19476788]
[1644588486090,0.24397664,43840.0,43839.0,0.00075148]
[1644588487235,0.24397664,43840.0,43835.0,0.19476788]
[1644588487437,0.34793044,43841.0,43837.0,0.05780487]
[1644588487634,0.20854443,43844.0,43840.0,6.193e-05]
[1644588488037,0.05,43842.0,43840.0,6.193e-05]
[1644588488236,0.22487655,43841.0,43840.0,6.193e-05]
[1644588488634,0.22487655,43841.0,43840.0,0.00081341]
[1644588489437,0.32526125,43842.0,43840.0,0.00081341]
[1644588489635,0.32526125,43842.0,43840.0,6.193e-05]
[1644588489839,0.0458,43842.0,43840.0,6.193e-05]
[1644588491096,0.1243,43847.0,43840.0,6.193e-05]
[1644588491286,0.1243,43847.0,43840.0,0.05710903]
[1644588491484,0.3603,43849.0,43840.0,0.05710903]
[1644588491883,0.36016977,43849.0,43840.0,0.05710903]
[1644588492086,0.32712649,43844.0,43841.0,0.00075148]
[1644588492286,0.32712649,43844.0,43841.0,0.11483407]
[1644588492485,0.32712649,43844.0,43841.0,0.00075148]
[1644588492685,0.0005416,43835.0,43832.0,0.19476788]
[1644588493187,0.0005416,43835.0,43832.0,0.25182388]
[1644588493588,0.0005416,43835.0,43833.0,0.34485928]
[1644588493785,0.0005416,43835.0,43833.0,0.4019106]
[1644588493986,0.0005416,43835.0,43834.0,0.19476788]
[1644588495047,0.0005416,43835.0,43833.0,0.4019106]
[1644588496046,0.0005416,43835.0,43834.0,0.057053]
[1644588497548,0.0005416,43835.0,43834.0,0.00018688]
[1644588501792,0.23651549,43835.0,43834.0,0.00018688]
[1644588502039,0.54392725,43835.0,43834.0,0.00018688]
[1644588502638,0.54392725,43835.0,43834.0,0.00018486]
[1644588503640,0.30795336,43835.0,43834.0,0.00018486]
[1644588506888,0.61065799,43835.0,43834.0,0.00018486]
[1644588507087,0.30795336,43835.0,43834.0,0.00018486]
[1644588507488,0.30795336,43835.0,43834.0,0.00012393]
[1644588507888,0.0005416,43835.0,43834.0,0.00012393]
[1644588509294,0.0005416,43835.0,43834.0,0.05717878]
[1644588509744,0.0005416,43835.0,43834.0,0.10297878]
[1644588510643,0.0005416,43835.0,43834.0,0.42610979]
[1644588511240,0.0005416,43835.0,43834.0,0.42110979]
[1644588511642,0.0005416,43835.0,43834.0,0.09797878]
[1644588512742,0.0005416,43835.0,43834.0,0.40733516]
[1644588513193,0.0005416,43835.0,43834.0,0.09797878]
[1644588516289,0.33380982,43835.0,43834.0,0.05217878]
[1644588516589,0.33380982,43835.0,43834.0,0.00012393]
[1644588517241,0.0005416,43835.0,43834.0,0.00012393]
[1644588518237,0.26314164,43835.0,43834.0,0.00012393]
[1644588519344,0.0005416,43835.0,43834.0,0.00012393]
[1644588522196,0.0005416,43835.0,43834.0,0.11423265]
[1644588522997,0.27650842,43831.0,43829.0,0.24345985]
[1644588523197,0.27650842,43831.0,43829.0,0.05706]
[1644588524197,0.27650842,43831.0,43829.0,0.17117839]
[1644588524835,0.27650842,43831.0,43829.0,0.41463824]
[1644588526338,0.27650842,43831.0,43829.0,0.35757824]
[1644588526538,0.27650842,43831.0,43829.0,0.11411839]
[1644588526739,0.32650842,43831.0,43830.0,0.19478807]
[1644588527038,0.27650842,43831.0,43830.0,0.19478807]
[1644588527240,0.27650842,43831.0,43829.0,0.30051885]
[1644588527438,0.21944842,43831.0,43829.0,0.35757781]
[1644588527644,0.21944842,43831.0,43830.0,0.24345985]
[1644588528288,0.21944842,43831.0,43829.0,0.71139434]
[1644588528489,0.21944842,43831.0,43829.0,0.81139434]
[1644588528688,0.21944842,43831.0,43829.0,0.45757781]
[1644588528890,0.21944842,43831.0,43829.0,0.35757781]
[1644588531597,0.21944842,43831.0,43830.0,0.19482426]
[1644588531796,0.32651542,43831.0,43829.0,0.19482426]
[1644588532042,0.32651542,43831.0,43828.0,0.19557581]
[1644588532242,0.32651542,43831.0,43828.0,0.00075155]
[1644588532439,0.38358242,43831.0,43828.0,0.00075155]
[1644588532640,0.28581584,43830.0,43828.0,0.00075155]
[1644588532844,0.28581584,43830.0,43825.0,0.19482426]
[1644588532845,0.40966805,43830.0,43825.0,0.19482426]
[1644588533041,0.40966805,43830.0,43827.0,0.00075155]
[1644588533643,0.057074,43829.0,43827.0,0.00075155]
[1644588533841,0.28274767,43828.0,43827.0,0.00075155]
[1644588534042,0.28274767,43828.0,43824.0,0.19482426]
[1644588534240,0.28274767,43828.0,43826.0,0.00075156]
[1644588534641,0.05707,43828.0,43826.0,0.00075156]
[1644588535042,0.27213358,43827.0,43826.0,0.00075156]
[1644588535243,0.27213358,43827.0,43824.0,0.2518924]
[1644588535547,0.33891179,43827.0,43825.0,0.00075157]
[1644588535787,0.60377299,43827.0,43825.0,0.00075157]
[1644588536088,0.27248116,43826.0,43825.0,0.00075157]
[1644588536488,0.27248116,43826.0,43823.0,0.19508477]
[1644588536689,0.057071,43825.0,43824.0,0.19557584]
[1644588536886,0.05661414,43825.0,43824.0,0.00075158]
[1644588537288,0.05661414,43825.0,43824.0,0.19555144]
[1644588537487,0.05661414,43825.0,43824.0,0.19581195]
[1644588537685,0.05661414,43825.0,43824.0,0.19506037]
[1644588538089,0.36392884,43825.0,43824.0,0.19506037]
[1644588538486,0.41392884,43825.0,43824.0,0.19506037]
[1644588539086,0.05661414,43825.0,43824.0,0.19506037]
[1644588539287,0.05661414,43825.0,43824.0,0.00026051]
[1644588539541,0.02849102,43825.0,43823.0,0.11439511]
[1644588540541,0.03763102,43825.0,43823.0,0.11439511]
[1644588540844,0.05,43829.0,43825.0,0.057059]
[1644588540845,0.057059,43828.0,43825.0,0.057059]
[1644588541040,0.057059,43828.0,43825.0,0.30890565]
[1644588541241,0.057059,43828.0,43826.0,0.19478791]
[1644588541643,0.05691213,43828.0,43826.0,0.19478791]
[1644588541839,0.05691213,43828.0,43827.0,0.19478791]
[1644588542041,0.057059,43829.0,43827.0,0.19478791]
[1644588542241,0.26944842,43831.0,43828.0,0.25183948]
[1644588542441,0.26944842,43831.0,43829.0,0.08232204]
[1644588542646,0.21944842,43831.0,43829.0,0.08232204]
[1644588542842,0.21944842,43831.0,43829.0,0.19478048]
[1644588543043,0.33357242,43831.0,43828.0,0.19478048]
[1644588543289,0.33357242,43831.0,43828.0,0.25184148]
[1644588543690,0.33357242,43831.0,43828.0,0.25183909]
[1644588544290,0.33357242,43831.0,43828.0,0.30890009]
[1644588544692,0.33357242,43831.0,43828.0,0.25183909]
[1644588544893,0.27650542,43831.0,43828.0,0.25183909]
[1644588545292,0.32650542,43831.0,43828.0,0.25183909]
[1644588545996,0.32650542,43831.0,43828.0,0.2520996]
[1644588546194,0.32650542,43831.0,43829.0,0.057059]
[1644588547145,0.32650542,43831.0,43828.0,0.19504099]
[1644588547344,0.32650542,43831.0,43828.0,0.25259103]
[1644588547745,0.32650542,43831.0,43829.0,0.11411203]
[1644588548446,0.32650542,43831.0,43829.0,0.36595051]
[1644588548447,0.27650542,43831.0,43829.0,0.36595051]
[1644588548845,0.27650542,43831.0,43829.0,0.36621102]
[1644588549445,0.27650542,43831.0,43829.0,0.30915302]
[1644588549646,0.32650542,43831.0,43828.0,0.05732382]
[1644588549845,0.32650542,43831.0,43828.0,0.0578132]
[1644588550043,0.32650542,43831.0,43828.0,0.25285419]
[1644588550245,0.32650542,43831.0,43828.0,0.0578132]
[1644588550446,0.32650542,43831.0,43828.0,0.05807371]
[1644588550988,0.38356942,43831.0,43828.0,0.05732382]